[Event "Turkish Cup 2024"]
[Site "Denizli"]
[Date "2024.08.03"]
[Round "7"]
[White "Yildiz, Talat"]
[Black "Metin, Enis"]
[Result "1-0"]
[ECO "B72"]
[WhiteElo "1956"]
[BlackElo "2142"]
[Annotator "ChessBase"]
[PlyCount "55"]
[EventDate "2024.08.01"]
[EventType "swiss"]
[EventCountry "TUR"]
[SourceTitle "playchess.com"]
[Source "ChessBase"]
[SourceQuality "1"]
[TimeControl "5400+30"]

1. e4 {[%emt 0:03:00]} c5 {[%emt 0:01:00]} 2. Nf3 {[%emt 0:00:00]} d6 {[%emt 0:06:30]} 3. d4 {[%emt 0:00:00]} cxd4 {[%emt 0:00:30]} 4. Nxd4 {[%emt 0:00:00]} Nf6 {[%emt 0:00:30]} 5. Nc3 {[%emt 0:00:00]} g6 {[%emt 0:00:00]} 6. Be3 {[%emt 0:00:30]} Nc6 {[%emt 0:03:00]} 7. f3 {[%emt 0:04:30]} h5 {[%emt 0:00:00]} 8. Qd2 {[%emt 0:05:30]} Nxd4 {[%emt 0:01:00]} 9. Bxd4 {[%emt 0:02:30]} Bh6 {[%emt 0:00:00]} 10. Qf2 {[%emt 0:07:30]} O-O {[%emt 0:03:00]} 11. Bc4 {[%emt 0:11:30]} Be6 {[%emt 0:05:30]} 12. Bb3 {[%emt 0:02:30]} Qa5 {[%emt 0:06:30]} 13. O-O {[%emt 0:02:30]} Bf4 {[%emt 0:10:30]} 14. Bxf6 {[%emt 0:16:30]} exf6 {[%emt 0:00:30]} 15. Nd5 {[%emt 0:00:30]} Bxd5 {[%emt 0:21:30]} 16. Bxd5 {[%emt 0:00:30]} Rab8 {[%emt 0:05:30]} 17. c3 {[%emt 0:01:30]} f5 {[%emt 0:00:30]} 18. Rad1 {[%emt 0:03:30]} Rbe8 {[%emt 0:05:30]} 19. Kh1 {[%emt 0:02:30]} Kg7 {[%emt 0:06:30]} 20. exf5 {[%emt 0:02:30]} Re5 {[%emt 0:01:30]} 21. Qd4 {[%emt 0:10:30]} Be3 {[%emt 0:00:30]} 22. Qd3 {[%emt 0:00:30]} Rxf5 {[%emt 0:01:34]} 23. Be4 {[%emt 0:00:30]} Re5 {[%emt 0:01:03]} 24. Qxe3 {[%emt 0:01:30]} f5 {[%emt 0:01:01]} 25. Qd4 {[%emt 0:02:33]} fxe4 {[%emt 0:00:07]} 26. f4 {[%emt 0:00:27]} Qb5 {[%emt 0:00:07]} 27. a4 {[%emt 0:06:45]} Qe2 {[%emt 0:00:08]} 28. Rfe1 {[%emt 0:00:00]} 1-0

[Event "Turkish Cup 2024"]
[Site "Denizli"]
[Date "2024.08.03"]
[Round "7"]
[White "Celik, Ege Yigit"]
[Black "Baylav, Can"]
[Result "1-0"]
[ECO "A11"]
[WhiteElo "1949"]
[BlackElo "2086"]
[Annotator "ChessBase"]
[PlyCount "103"]
[EventDate "2024.08.01"]
[EventType "swiss"]
[EventCountry "TUR"]
[SourceTitle "playchess.com"]
[Source "ChessBase"]
[SourceQuality "1"]
[TimeControl "5400+30"]

1. c4 {[%emt 0:01:00]} c6 {[%emt 0:03:00]} 2. Nf3 {[%emt 0:00:00]} d5 {[%emt 0:00:30]} 3. g3 {[%emt 0:00:00]} Nf6 {[%emt 0:00:30]} 4. Bg2 {[%emt 0:00:30]} Bf5 {[%emt 0:00:00]} 5. cxd5 {[%emt 0:02:30]} cxd5 {[%emt 0:00:00]} 6. Qb3 {[%emt 0:01:30]} Nc6 {[%emt 0:00:30]} 7. Qxb7 {[%emt 0:04:30]} Bd7 {[%emt 0:00:00]} 8. Qb3 {[%emt 0:01:30]} e5 {[%emt 0:05:00]} 9. d3 {[%emt 0:01:30]} Rb8 {[%emt 0:00:00]} 10. Qd1 {[%emt 0:00:30]} Bb4+ {[%emt 0:00:00]} 11. Bd2 {[%emt 0:03:30]} e4 {[%emt 0:00:30]} 12. dxe4 {[%emt 0:04:30]} dxe4 {[%emt 0:03:30]} 13. Ng5 {[%emt 0:00:30]} e3 {[%emt 0:01:30]} 14. fxe3 {[%emt 0:01:30]} Ng4 {[%emt 0:01:30]} 15. Qc2 {[%emt 0:50:30]} Nce5 {[%emt 0:53:30]} 16. Nf3 {[%emt 0:04:49]} Nxf3+ {[%emt 0:05:30]} 17. Bxf3 {[%emt 0:01:26]} Nxe3 {[%emt 0:00:30]} 18. Qe4+ {[%emt 0:01:13]} Qe7 {[%emt 0:00:30]} 19. Nc3 {[%emt 0:00:03]} Qxe4 {[%emt 0:00:30]} 20. Bxe4 {[%emt 0:00:56]} Nc4 {[%emt 0:00:30]} 21. O-O-O {[%emt 0:01:22]} Bd6 {[%emt 0:01:30]} 22. Bf4 {[%emt 0:01:15]} Bxf4+ {[%emt 0:02:30]} 23. gxf4 {[%emt 0:00:03]} Ke7 {[%emt 0:08:59]} 24. b3 {[%emt 0:05:12]} Nd6 {[%emt 0:00:36]} 25. Bd3 {[%emt 0:01:33]} Rhc8 {[%emt 0:00:28]} 26. Kb2 {[%emt 0:01:05]} f5 {[%emt 0:00:04]} 27. e4 {[%emt 0:00:52]} Rxc3 {[%emt 0:02:17]} 28. Kxc3 {[%emt 0:01:24]} fxe4 {[%emt 0:00:01]} 29. Rhe1 {[%emt 0:00:28]} Bc6 {[%emt 0:00:43]} 30. Bc4 {[%emt 0:03:42]} Rc8 {[%emt 0:00:01]} 31. Kb2 {[%emt 0:00:07]} Rf8 {[%emt 0:02:18]} 32. Rf1 {[%emt 0:01:29]} Rf5 {[%emt 0:00:01]} 33. Kc3 {[%emt 0:02:31]} Rh5 {[%emt 0:00:02]} 34. Rd2 {[%emt 0:00:41]} Rh3+ {[%emt 0:00:04]} 35. Kb4 {[%emt 0:00:08]} e3 {[%emt 0:03:28]} 36. Re2 {[%emt 0:02:23]} Nf5 {[%emt 0:00:22]} 37. Rfe1 {[%emt 0:00:38]} Bf3 {[%emt 0:02:31]} 38. Rxe3+ {[%emt 0:00:30]} Nxe3 {[%emt 0:00:30]} 39. Rxe3+ {[%emt 0:00:00]} Kf6 {[%emt 0:00:00]} 40. Be2 {[%emt 0:01:13]} Bg2 {[%emt 0:00:00]} 41. Rxh3 {[%emt 0:00:00]} Bxh3 {[%emt 0:00:00]} 42. Bd3 {[%emt 0:00:19]} Bf5 {[%emt 0:00:28]} 43. Kc3 {[%emt 0:00:30]} h6 {[%emt 0:00:30]} 44. b4 {[%emt 0:00:30]} Bc8 {[%emt 0:00:30]} 45. Kd4 {[%emt 0:00:30]} g5 {[%emt 0:00:30]} 46. fxg5+ {[%emt 0:00:30]} hxg5 {[%emt 0:00:30]} 47. a4 {[%emt 0:00:30]} g4 {[%emt 0:00:30]} 48. b5 {[%emt 0:00:30]} Kg5 {[%emt 0:00:30]} 49. a5 {[%emt 0:00:30]} Kh4 {[%emt 0:00:30]} 50. Bf1 {[%emt 0:00:30]} Bd7 {[%emt 0:00:30]} 51. Kc5 {[%emt 0:00:30]} Bf5 {[%emt 0:00:30]} 52. Kc6 {[%emt 0:00:30]} 1-0

[Event "Turkish Cup 2024"]
[Site "Denizli"]
[Date "2024.08.03"]
[Round "7"]
[White "Kaynak, Deniz Can"]
[Black "Tirpan, Ceren"]
[Result "0-1"]
[ECO "A36"]
[WhiteElo "1931"]
[BlackElo "1926"]
[Annotator "ChessBase"]
[PlyCount "112"]
[EventDate "2024.08.01"]
[EventType "swiss"]
[EventCountry "TUR"]
[SourceTitle "playchess.com"]
[Source "ChessBase"]
[SourceQuality "1"]
[TimeControl "5400+30"]

1. c4 {[%emt 0:01:00]} c5 {[%emt 0:01:00]} 2. g3 {[%emt 0:00:30]} g6 {[%emt 0:00:30]} 3. Bg2 {[%emt 0:00:00]} Bg7 {[%emt 0:00:00]} 4. Nc3 {[%emt 0:00:00]} Nc6 {[%emt 0:00:00]} 5. a3 {[%emt 0:00:00]} d6 {[%emt 0:00:30]} 6. e3 {[%emt 0:01:00]} e6 {[%emt 0:00:30]} 7. Nge2 {[%emt 0:00:30]} Nge7 {[%emt 0:02:30]} 8. O-O {[%emt 0:00:30]} O-O {[%emt 0:00:30]} 9. d4 {[%emt 0:08:30]} Nf5 {[%emt 0:08:30]} 10. d5 {[%emt 0:11:30]} Na5 {[%emt 0:08:30]} 11. b3 {[%emt 0:05:30]} a6 {[%emt 0:05:30]} 12. Rb1 {[%emt 0:02:30]} Rb8 {[%emt 0:06:30]} 13. Qd3 {[%emt 0:11:30]} b5 {[%emt 0:21:30]} 14. cxb5 {[%emt 0:18:30]} axb5 {[%emt 0:00:30]} 15. b4 {[%emt 0:11:30]} c4 {[%emt 0:04:30]} 16. Qc2 {[%emt 0:06:33]} Nb3 {[%emt 0:00:30]} 17. Bb2 {[%emt 0:00:55]} Qb6 {[%emt 0:08:30]} 18. Rfd1 {[%emt 0:07:24]} e5 {[%emt 0:04:30]} 19. Nc1 {[%emt 0:01:18]} Nxc1 {[%emt 0:00:30]} 20. Bxc1 {[%emt 0:01:52]} Bd7 {[%emt 0:07:04]} 21. Bd2 {[%emt 0:01:53]} Ra8 {[%emt 0:01:16]} 22. Ra1 {[%emt 0:00:26]} Rfb8 {[%emt 0:03:52]} 23. Rdb1 {[%emt 0:01:55]} Ra7 {[%emt 0:03:37]} 24. Ra2 {[%emt 0:02:06]} Rba8 {[%emt 0:05:09]} 25. Rba1 {[%emt 0:00:01]} Qc7 {[%emt 0:01:59]} 26. h3 {[%emt 0:04:52]} h6 {[%emt 0:00:57]} 27. Nd1 {[%emt 0:00:38]} Qc8 {[%emt 0:00:41]} 28. Bc3 {[%emt 0:00:30]} Kh7 {[%emt 0:00:39]} 29. Nb2 {[%emt 0:00:24]} Qc7 {[%emt 0:04:01]} 30. Qd1 {[%emt 0:00:46]} Ne7 {[%emt 0:00:16]} 31. a4 {[%emt 0:00:40]} bxa4 {[%emt 0:00:22]} 32. Nxa4 {[%emt 0:00:20]} Nc8 {[%emt 0:00:22]} 33. Qc2 {[%emt 0:00:34]} Be8 {[%emt 0:00:45]} 34. e4 {[%emt 0:00:28]} Qd7 {[%emt 0:00:42]} 35. Bf1 {[%emt 0:00:48]} Rxa4 {[%emt 0:00:10]} 36. Rxa4 {[%emt 0:00:48]} Rxa4 {[%emt 0:00:06]} 37. Rxa4 {[%emt 0:00:38]} Qxa4 {[%emt 0:00:30]} 38. Qxa4 {[%emt 0:00:00]} Bxa4 {[%emt 0:00:07]} 39. Bxc4 {[%emt 0:00:00]} Na7 40. f3 {[%emt 0:00:50]} Bf6 {[%emt 0:00:45]} 41. Bb2 {[%emt 0:00:49]} Kg7 {[%emt 0:00:53]} 42. Kf2 {[%emt 0:00:08]} Bd8 {[%emt 0:00:00]} 43. Ke3 {[%emt 0:00:40]} Bb6+ {[%emt 0:00:00]} 44. Kd3 {[%emt 0:00:43]} f6 {[%emt 0:00:09]} 45. Bc1 {[%emt 0:00:09]} Nb5 {[%emt 0:00:40]} 46. f4 {[%emt 0:00:18]} Nd4 {[%emt 0:00:00]} 47. fxe5 {[%emt 0:01:18]} fxe5 {[%emt 0:00:00]} 48. Kc3 {[%emt 0:00:00]} Bd1 {[%emt 0:00:48]} 49. Ba3 {[%emt 0:00:33]} Kf6 {[%emt 0:00:36]} 50. b5 {[%emt 0:00:12]} Ke7 {[%emt 0:00:33]} 51. g4 {[%emt 0:00:39]} Bf3 {[%emt 0:00:14]} 52. Bc1 {[%emt 0:00:38]} g5 {[%emt 0:00:15]} 53. Bd3 {[%emt 0:01:04]} Ne2+ {[%emt 0:00:30]} 54. Bxe2 {[%emt 0:00:00]} Bxe2 {[%emt 0:00:18]} 55. h4 {[%emt 0:00:03]} gxh4 {[%emt 0:00:30]} 56. Bxh6 {[%emt 0:00:00]} h3 {[%emt 0:00:00]} 0-1

[Event "Turkish Cup 2024"]
[Site "Denizli"]
[Date "2024.08.03"]
[Round "7"]
[White "Kocakaplan, Emre"]
[Black "Eroglu, Berke"]
[Result "0-1"]
[ECO "A41"]
[WhiteElo "1926"]
[BlackElo "1873"]
[Annotator "ChessBase"]
[PlyCount "180"]
[EventDate "2024.08.01"]
[EventType "swiss"]
[EventCountry "TUR"]
[SourceTitle "playchess.com"]
[Source "ChessBase"]
[SourceQuality "1"]
[TimeControl "5400+30"]

1. d4 {[%emt 0:01:00]} d6 {[%emt 0:01:00]} 2. Nf3 {[%emt 0:00:30]} g6 {[%emt 0:00:00]} 3. c4 {[%emt 0:00:00]} Bg7 {[%emt 0:00:00]} 4. g3 {[%emt 0:00:00]} Nd7 {[%emt 0:01:30]} 5. Bg2 {[%emt 0:00:30]} e5 {[%emt 0:01:30]} 6. O-O {[%emt 0:02:30]} Ne7 {[%emt 0:00:30]} 7. Nc3 {[%emt 0:01:30]} O-O {[%emt 0:00:30]} 8. dxe5 {[%emt 0:10:30]} dxe5 {[%emt 0:00:30]} 9. Qc2 {[%emt 0:00:30]} Nf5 {[%emt 0:05:30]} 10. Rd1 {[%emt 0:08:30]} c6 {[%emt 0:09:30]} 11. Ne4 {[%emt 0:04:30]} Qc7 {[%emt 0:07:30]} 12. b3 {[%emt 0:10:30]} Nf6 {[%emt 0:07:30]} 13. Ba3 {[%emt 0:07:30]} Re8 {[%emt 0:07:30]} 14. Nd6 {[%emt 0:09:30]} Nxd6 {[%emt 0:09:30]} 15. Bxd6 {[%emt 0:00:30]} Qa5 {[%emt 0:02:30]} 16. b4 {[%emt 0:02:30]} Qb6 {[%emt 0:19:30]} 17. c5 {[%emt 0:12:30]} Qxb4 {[%emt 0:01:30]} 18. Rab1 {[%emt 0:02:30]} Qa5 {[%emt 0:08:01]} 19. Nxe5 {[%emt 0:05:34]} Nd5 {[%emt 0:02:34]} 20. Nc4 {[%emt 0:09:19]} Qc3 {[%emt 0:00:16]} 21. Qa4 {[%emt 0:02:16]} Rxe2 {[%emt 0:01:50]} 22. Bf1 {[%emt 0:02:36]} Re4 {[%emt 0:04:06]} 23. Rdc1 {[%emt 0:04:30]} Qf6 {[%emt 0:02:38]} 24. Qa5 {[%emt 0:00:24]} Re8 {[%emt 0:01:33]} 25. Re1 {[%emt 0:00:37]} Rxe1 {[%emt 0:01:47]} 26. Qxe1 {[%emt 0:00:08]} Qd8 {[%emt 0:00:44]} 27. Bg2 {[%emt 0:00:53]} Nf6 {[%emt 0:01:04]} 28. Na5 {[%emt 0:01:00]} Bf8 {[%emt 0:01:47]} 29. Nxc6 {[%emt 0:00:59]} bxc6 {[%emt 0:00:10]} 30. Bxc6 {[%emt 0:00:26]} Bxd6 {[%emt 0:00:54]} 31. Bxa8 {[%emt 0:00:19]} Bxc5 {[%emt 0:00:28]} 32. Bf3 {[%emt 0:01:15]} Be6 {[%emt 0:00:49]} 33. Qe5 {[%emt 0:00:30]} Qd4 {[%emt 0:00:20]} 34. Qe2 {[%emt 0:00:37]} Bb6 {[%emt 0:00:29]} 35. Rd1 {[%emt 0:00:18]} Qc5 {[%emt 0:00:38]} 36. Kg2 {[%emt 0:00:21]} Kg7 {[%emt 0:00:45]} 37. h4 {[%emt 0:00:30]} Qf5 {[%emt 0:00:38]} 38. Rh1 {[%emt 0:00:11]} Bd5 {[%emt 0:00:00]} 39. Rd1 {[%emt 0:00:16]} Bxf3+ {[%emt 0:01:21]} 40. Qxf3 {[%emt 0:00:01]} Qxf3+ {[%emt 0:00:21]} 41. Kxf3 {[%emt 0:00:07]} h5 {[%emt 0:00:00]} 42. Ke2 {[%emt 0:02:12]} Ne4 {[%emt 0:00:08]} 43. Ra1 {[%emt 0:00:31]} Nxf2 {[%emt 0:00:47]} 44. a4 {[%emt 0:00:13]} Ng4 {[%emt 0:00:43]} 45. a5 {[%emt 0:00:12]} Bf2 {[%emt 0:00:35]} 46. Kf3 {[%emt 0:00:22]} Kf6 {[%emt 0:00:41]} 47. Rb1 {[%emt 0:00:53]} Bc5 {[%emt 0:00:37]} 48. Rb5 {[%emt 0:00:39]} Bg1 {[%emt 0:00:38]} 49. Kg2 {[%emt 0:00:36]} Bd4 {[%emt 0:00:37]} 50. Kf3 {[%emt 0:00:51]} Ke6 {[%emt 0:00:10]} 51. Ke4 {[%emt 0:00:11]} Bf2 {[%emt 0:00:42]} 52. Kf3 {[%emt 0:00:30]} Bg1 {[%emt 0:00:00]} 53. Rb1 {[%emt 0:00:35]} Bc5 {[%emt 0:00:15]} 54. Rb7 {[%emt 0:00:23]} Ne5+ {[%emt 0:00:31]} 55. Ke4 {[%emt 0:00:40]} Nc4 {[%emt 0:00:26]} 56. Rc7 {[%emt 0:00:22]} Nd6+ {[%emt 0:00:15]} 57. Kd3 {[%emt 0:00:35]} Bg1 {[%emt 0:00:51]} 58. Rc1 {[%emt 0:00:20]} Bf2 {[%emt 0:00:36]} 59. Rc7 {[%emt 0:00:08]} Kd5 {[%emt 0:00:19]} 60. Ke2 {[%emt 0:00:11]} Bd4 {[%emt 0:00:39]} 61. Kd3 {[%emt 0:00:16]} Bf2 {[%emt 0:01:02]} 62. Re7 {[%emt 0:00:25]} Bxg3 {[%emt 0:00:56]} 63. Rxa7 {[%emt 0:00:08]} Bxh4 {[%emt 0:00:00]} 64. a6 {[%emt 0:00:17]} Bf2 {[%emt 0:00:28]} 65. Rd7 {[%emt 0:00:40]} h4 {[%emt 0:01:00]} 66. a7 {[%emt 0:01:02]} Bxa7 {[%emt 0:00:30]} 67. Rxa7 {[%emt 0:00:00]} Ke6 {[%emt 0:00:00]} 68. Ke3 {[%emt 0:00:23]} g5 {[%emt 0:00:43]} 69. Kf3 {[%emt 0:00:17]} f5 {[%emt 0:00:32]} 70. Rg7 {[%emt 0:00:47]} Kf6 {[%emt 0:00:07]} 71. Rg8 {[%emt 0:00:35]} Nc4 {[%emt 0:00:24]} 72. Rf8+ {[%emt 0:00:12]} Kg6 {[%emt 0:00:49]} 73. Rg8+ {[%emt 0:00:07]} Kh6 {[%emt 0:00:00]} 74. Re8 {[%emt 0:01:04]} Nd2+ {[%emt 0:00:25]} 75. Ke3 {[%emt 0:00:22]} Ne4 {[%emt 0:00:21]} 76. Rf8 {[%emt 0:00:37]} Kg6 {[%emt 0:00:19]} 77. Kf3 {[%emt 0:00:21]} Nf6 {[%emt 0:00:26]} 78. Ra8 {[%emt 0:00:11]} h3 {[%emt 0:00:47]} 79. Ra6 {[%emt 0:00:09]} g4+ {[%emt 0:00:20]} 80. Kg3 {[%emt 0:01:15]} Kg5 {[%emt 0:00:08]} 81. Ra7 {[%emt 0:00:03]} Nh5+ {[%emt 0:01:16]} 82. Kh2 {[%emt 0:00:04]} f4 {[%emt 0:00:12]} 83. Rh7 {[%emt 0:00:24]} Kh4 {[%emt 0:00:33]} 84. Rh8 {[%emt 0:00:12]} g3+ {[%emt 0:00:43]} 85. Kg1 {[%emt 0:00:03]} f3 {[%emt 0:00:03]} 86. Rf8 {[%emt 0:00:16]} f2+ {[%emt 0:01:06]} 87. Rxf2 {[%emt 0:00:40]} gxf2+ {[%emt 0:00:30]} 88. Kxf2 {[%emt 0:00:00]} Nf4 {[%emt 0:00:00]} 89. Kg1 {[%emt 0:00:20]} Kg3 {[%emt 0:00:01]} 90. Kh1 {[%emt 0:00:00]} Nd3 {[%emt 0:00:09]} 0-1

[Event "Turkish Cup 2024"]
[Site "Denizli"]
[Date "2024.08.03"]
[Round "7"]
[White "Herdem, Talha"]
[Black "Demirci, Fatih"]
[Result "1-0"]
[ECO "B14"]
[WhiteElo "1911"]
[BlackElo "1885"]
[Annotator "ChessBase"]
[PlyCount "93"]
[EventDate "2024.08.01"]
[EventType "swiss"]
[EventCountry "TUR"]
[SourceTitle "playchess.com"]
[Source "ChessBase"]
[SourceQuality "1"]
[TimeControl "5400+30"]

1. e4 {[%emt 0:03:00]} c6 {[%emt 0:01:00]} 2. d4 {[%emt 0:00:30]} d5 {[%emt 0:00:30]} 3. exd5 {[%emt 0:00:00]} cxd5 {[%emt 0:00:00]} 4. c4 {[%emt 0:00:00]} Nf6 {[%emt 0:00:00]} 5. Nc3 {[%emt 0:00:00]} g6 {[%emt 0:01:30]} 6. cxd5 {[%emt 0:03:00]} Bg7 {[%emt 0:01:30]} 7. Bc4 {[%emt 0:00:30]} O-O {[%emt 0:00:30]} 8. Nge2 {[%emt 0:01:30]} Nbd7 {[%emt 0:00:30]} 9. Nf4 {[%emt 0:00:30]} a6 {[%emt 0:00:30]} 10. a4 {[%emt 0:00:30]} Nb6 {[%emt 0:00:30]} 11. Ba2 {[%emt 0:01:30]} Bf5 {[%emt 0:01:30]} 12. O-O {[%emt 0:00:30]} Rc8 {[%emt 0:07:30]} 13. h3 {[%emt 0:01:30]} Nc4 {[%emt 0:03:30]} 14. Re1 {[%emt 0:05:30]} Re8 {[%emt 0:01:30]} 15. g4 {[%emt 0:01:30]} Bd7 {[%emt 0:00:30]} 16. g5 {[%emt 0:08:30]} Nh5 {[%emt 0:00:30]} 17. Nxh5 {[%emt 0:01:30]} gxh5 {[%emt 0:00:00]} 18. Bb1 {[%emt 0:03:30]} Nd6 {[%emt 0:00:00]} 19. Qxh5 {[%emt 0:05:30]} Bf5 {[%emt 0:05:30]} 20. Bf4 {[%emt 0:07:30]} Qd7 {[%emt 0:06:30]} 21. Be5 {[%emt 0:04:30]} f6 {[%emt 0:02:30]} 22. Bxd6 {[%emt 0:12:30]} Bxb1 {[%emt 0:00:30]} 23. Raxb1 {[%emt 0:02:30]} Qxd6 {[%emt 0:00:30]} 24. Re6 {[%emt 0:02:30]} Qf4 {[%emt 0:10:30]} 25. d6 {[%emt 0:05:30]} Rf8 {[%emt 0:01:30]} 26. Nd5 {[%emt 0:05:30]} Qxg5+ {[%emt 0:02:30]} 27. Qxg5 {[%emt 0:00:30]} fxg5 {[%emt 0:00:00]} 28. dxe7 {[%emt 0:01:30]} Rfe8 {[%emt 0:05:00]} 29. Re4 {[%emt 0:01:30]} Kf7 {[%emt 0:02:30]} 30. Rd1 {[%emt 0:03:57]} Rc6 {[%emt 0:03:30]} 31. f4 {[%emt 0:04:13]} Rd6 {[%emt 0:06:30]} 32. Ne3 {[%emt 0:00:49]} Re6 {[%emt 0:07:30]} 33. Rxe6 {[%emt 0:01:22]} Kxe6 {[%emt 0:00:30]} 34. d5+ {[%emt 0:00:13]} Kxe7 {[%emt 0:00:30]} 35. Nf5+ {[%emt 0:00:30]} Kf6 {[%emt 0:00:30]} 36. Nxg7 {[%emt 0:00:30]} Kxg7 {[%emt 0:00:30]} 37. fxg5 {[%emt 0:00:00]} Kg6 {[%emt 0:02:30]} 38. h4 {[%emt 0:00:26]} Rd8 {[%emt 0:00:30]} 39. d6 {[%emt 0:01:18]} Rd7 {[%emt 0:00:30]} 40. Kf2 {[%emt 0:00:44]} Kf5 {[%emt 0:00:30]} 41. Kf3 {[%emt 0:00:00]} b6 {[%emt 0:02:30]} 42. Rd5+ {[%emt 0:00:27]} Ke6 {[%emt 0:01:30]} 43. Ke4 {[%emt 0:00:15]} Rd8 {[%emt 0:03:30]} 44. d7 {[%emt 0:00:21]} b5 {[%emt 0:00:30]} 45. axb5 {[%emt 0:00:43]} axb5 {[%emt 0:00:00]} 46. b4 {[%emt 0:00:28]} Ke7 {[%emt 0:01:00]} 47. Ke5 {[%emt 0:01:20]} 1-0

[Event "Turkish Cup 2024"]
[Site "Denizli"]
[Date "2024.08.03"]
[Round "7"]
[White "Topal, Hasan Gokmen"]
[Black "Koseoglu, Omer Umut"]
[Result "1-0"]
[ECO "B30"]
[WhiteElo "1905"]
[BlackElo "1841"]
[Annotator "ChessBase"]
[PlyCount "89"]
[EventDate "2024.08.01"]
[EventType "swiss"]
[EventCountry "TUR"]
[SourceTitle "playchess.com"]
[Source "ChessBase"]
[SourceQuality "1"]
[TimeControl "5400+30"]

1. e4 {[%emt 0:01:00]} c5 {[%emt 0:01:00]} 2. Nc3 {[%emt 0:00:30]} e6 {[%emt 0:00:30]} 3. Nf3 {[%emt 0:00:00]} Nc6 {[%emt 0:00:30]} 4. Bb5 {[%emt 0:01:00]} d6 {[%emt 0:01:30]} 5. Bxc6+ {[%emt 0:00:30]} bxc6 {[%emt 0:00:00]} 6. d3 {[%emt 0:00:30]} Nf6 {[%emt 0:02:00]} 7. e5 {[%emt 0:05:30]} dxe5 {[%emt 0:02:30]} 8. Nxe5 {[%emt 0:00:30]} Qc7 {[%emt 0:00:30]} 9. Qe2 {[%emt 0:02:30]} Nd5 {[%emt 0:01:30]} 10. O-O {[%emt 0:02:30]} Bd6 {[%emt 0:04:30]} 11. Re1 {[%emt 0:03:30]} O-O {[%emt 0:04:30]} 12. h3 {[%emt 0:02:30]} Ba6 {[%emt 0:05:30]} 13. Bd2 {[%emt 0:05:30]} Rfd8 {[%emt 0:10:30]} 14. b3 {[%emt 0:14:30]} Rab8 {[%emt 0:07:30]} 15. Na4 {[%emt 0:13:30]} f6 {[%emt 0:16:30]} 16. Nc4 {[%emt 0:07:30]} Re8 {[%emt 0:01:30]} 17. Nxd6 {[%emt 0:02:30]} Qxd6 {[%emt 0:00:30]} 18. Be3 {[%emt 0:01:30]} Nxe3 {[%emt 0:00:00]} 19. Qxe3 {[%emt 0:00:30]} Rb5 {[%emt 0:01:00]} 20. Nc3 {[%emt 0:03:30]} Ra5 {[%emt 0:00:00]} 21. Rad1 {[%emt 0:00:30]} Qd4 {[%emt 0:03:00]} 22. Qd2 {[%emt 0:01:30]} Ra3 {[%emt 0:04:30]} 23. Re4 {[%emt 0:01:30]} Qd8 {[%emt 0:00:30]} 24. Qe3 {[%emt 0:01:30]} Qd6 {[%emt 0:00:30]} 25. Re1 {[%emt 0:00:30]} Kf7 {[%emt 0:01:30]} 26. Qf3 {[%emt 0:08:59]} g6 {[%emt 0:00:30]} 27. Rh4 {[%emt 0:00:46]} h5 {[%emt 0:00:30]} 28. Ne4 {[%emt 0:01:22]} Qe5 {[%emt 0:00:30]} 29. Rf4 {[%emt 0:00:00]} Ke7 {[%emt 0:01:30]} 30. Rxf6 {[%emt 0:00:01]} Rxa2 {[%emt 0:00:00]} 31. Qd1 {[%emt 0:02:19]} Bc8 {[%emt 0:03:00]} 32. Rxg6 {[%emt 0:01:40]} Rf8 {[%emt 0:00:30]} 33. Qb1 {[%emt 0:01:00]} Ra5 {[%emt 0:02:30]} 34. Qc1 {[%emt 0:03:32]} Rf5 {[%emt 0:00:30]} 35. Qh6 {[%emt 0:00:31]} Kd8 {[%emt 0:01:30]} 36. Rg7 {[%emt 0:01:05]} Bd7 {[%emt 0:00:00]} 37. Qh7 {[%emt 0:01:18]} Qd4 {[%emt 0:00:00]} 38. Rg8+ {[%emt 0:00:18]} Kc7 {[%emt 0:00:30]} 39. Qe7 {[%emt 0:00:12]} Ra1 {[%emt 0:01:30]} 40. Qd8+ {[%emt 0:03:01]} Kb7 {[%emt 0:00:00]} 41. Qb8+ {[%emt 0:00:18]} Ka6 {[%emt 0:00:00]} 42. Rxa1+ {[%emt 0:00:35]} Qxa1+ {[%emt 0:00:30]} 43. Kh2 {[%emt 0:00:30]} h4 {[%emt 0:00:00]} 44. Rd8 {[%emt 0:00:03]} Qd4 {[%emt 0:00:00]} 45. Qc7 {[%emt 0:00:28]} 1-0